Workbook

Sheet Corridor
D1: Project | E1: Example 1
D2: Scenario | E2: Existing 2019 PM Peak
D4: Location Information
D6: Corridor | E6: Corridor & Direction | F6: Link ID | G6: Affects 2+ Corridors? | H6: # of Lanes | I6: Type | J6: Location
D7: EB STH 99 | E7: EB STH 99 | F7: 1000 | H7: 2 | I7: mainline | J7: EB STH 99, west of CTH X
E8: EB STH 99 | F8: 1001 | H8: 1 | I8: on | J8: on from CTH X
E9: EB STH 99 | F9: 1002 | H9: 2 | I9: mainline.
E10: EB STH 99 | F10: 1003 | H10: 1 | I10: off | J10: off to CTH A
E11: EB STH 99 | F11: 1004 | H11: 2 | I11: mainline.
E12: EB STH 99 | F12: 1005 | H12: 1 | I12: on | J12: on from CTH A
E13: EB STH 99 | F13: 1006 | H13: 2 | I13: mainline.
E14: EB STH 99 | F14: 1007 | G14: Primary | H14: 1 | I14: on | J14: on from NB US 123
E15: EB STH 99 | F15: 1008 | H15: 2 | I15: mainline.
E16: EB STH 99 | F16: 1009 | H16: 1 | I16: off | J16: off to CTH B
E17: EB STH 99 | F17: 1010 | H17: 2 | I17: mainline.
E18: EB STH 99 | F18: 1011 | H18: 1 | I18: on | J18: on from CTH B
E19: EB STH 99 | F19: 1012 | H19: 2 | I19: mainline | J19: EB STH 99, east of CTH B
D20: NB US 123 | E20: NB US 123 | F20: 2000 | H20: 2 | I20: mainline | J20: NB US 123, south of STH 1
E21: NB US 123 | F21: 2001 | H21: 1 | I21: off | J21: off to STH 1
E22: NB US 123 | F22: 2002 | H22: 2 | I22: mainline.
E23: NB US 123 | F23: 2003 | H23: 1 | I23: on | J23: on from STH 1
E24: NB US 123 | F24: 2004 | H24: 2 | I24: mainline.
E25: NB US 123 | F25: 1007 | G25: Secondary | H25: 1 | I25: off | J25: off to EB STH 99
E26: NB US 123 | F26: 2005 | H26: 2 | I26: mainline.
E27: NB US 123 | F27: 2006 | H27: 1 | I27: off | J27: off to STH 2
E28: NB US 123 | F28: 2007 | H28: 2 | I28: mainline.
E29: NB US 123 | F29: 2008 | H29: 1 | I29: on | J29: on from STH 2
E30: NB US 123 | F30: 2009 | H30: 2 | I30: mainline | J30: NB US 123, north of STH 2

Sheet Raw-Initial Volumes
D1: Project | E1: =project_name -> Example 1
D2: Scenario | E2: =scenario_name -> Existing 2019 PM Peak
D6: Location Information | K6: Raw/Initial Traffic Volumes | AK6: Initial Input to Volume Balancing
K7: AADT | Q7: ATR | U7: V-SPOC | Y7: Tube Count 1 | AC7: Tube Count 2 | AG7: Turning Movement Count
C9: SORT | D9: Corridor | E9: Corridor & Direction | F9: Link ID | G9: Affects 2+ Corridors? | H9: # of Lanes | I9: Type | J9: Location | K9: TRADAS ID | L9: Year | M9: AADT | N9: K-factor | O9: Hourly Volume | P9: Comments | Q9: Date | R9: Hour | S9: Volume | T9: Comments | U9: Date | V9: Hour | W9: Volume | X9: Comments | Y9: Date | Z9: Hour | AA9: Volume | AB9: Comments | AC9: Date | AD9: Hour | AE9: Volume | AF9: Comments | AG9: Date | AH9: Hour | AI9: Volume | AJ9: Comments | AK9: Source / Comments | AL9: Raw Volume
C10: 1 | D10: EB STH 99 | E10: EB STH 99 | F10: 1000 | H10: 2 | I10: mainline | J10: EB STH 99, west of CTH X | Q10: 2019-01-01 | R10: 16:00:00 | S10: 2053 | AK10: ATR | AL10: =S10 -> 2053
C11: 2 | E11: EB STH 99 | F11: 1001 | H11: 1 | I11: on | J11: on from CTH X | Y11: 2017-02-02 | Z11: 16:00:00 | AA11: 348 | AK11: Tube | AL11: =AA11 -> 348
C12: 3 | E12: EB STH 99 | F12: 1002 | H12: 2 | I12: mainline.
C13: 4 | E13: EB STH 99 | F13: 1003 | H13: 1 | I13: off | J13: off to CTH A | U13: 2019-01-01 | V13: 16:00:00 | W13: 547 | Y13: 2015-03-03 | Z13: 16:00:00 | AA13: 623 | AK13: V-SPOC | AL13: =W13 -> 547
C14: 5 | E14: EB STH 99 | F14: 1004 | H14: 2 | I14: mainline.
C15: 6 | E15: EB STH 99 | F15: 1005 | H15: 1 | I15: on | J15: on from CTH A | Y15: 2015-03-03 | Z15: 16:00:00 | AA15: 528 | AK15: Tube | AL15: =AA15 -> 528
C16: 7 | E16: EB STH 99 | F16: 1006 | H16: 2 | I16: mainline.
C17: 8 | E17: EB STH 99 | F17: 1007 | G17: Primary | H17: 1 | I17: on | J17: on from NB US 123 | Y17: 2019-04-04 | Z17: 16:00:00 | AA17: 1263 | AK17: Tube | AL17: =AA17 -> 1263
C18: 9 | E18: EB STH 99 | F18: 1008 | H18: 2 | I18: mainline.
C19: 10 | E19: EB STH 99 | F19: 1009 | H19: 1 | I19: off | J19: off to CTH B | Y19: 2018-06-06 | Z19: 16:00:00 | AA19: 500 | AK19: Tube | AL19: =AA19 -> 500
C20: 11 | E20: EB STH 99 | F20: 1010 | H20: 2 | I20: mainline.
C21: 12 | E21: EB STH 99 | F21: 1011 | H21: 1 | I21: on | J21: on from CTH B | Y21: 2019-05-05 | Z21: 16:00:00 | AA21: 265 | AK21: Tube | AL21: =AA21 -> 265
C22: 13 | E22: EB STH 99 | F22: 1012 | H22: 2 | I22: mainline | J22: EB STH 99, east of CTH B | Y22: 2018-08-08 | Z22: 16:00:00 | AA22: 3175 | AK22: Tube | AL22: =AA22 -> 3175
C23: 14 | D23: NB US 123 | E23: NB US 123 | F23: 2000 | H23: 2 | I23: mainline | J23: NB US 123, south of STH 1 | Y23: 2019-07-07 | AA23: 2678 | AK23: Tube | AL23: =AA23 -> 2678
C24: 15 | E24: NB US 123 | F24: 2001 | H24: 1 | I24: off | J24: off to STH 1 | Y24: 2017-02-02 | AA24: 760 | AK24: Tube | AL24: =AA24 -> 760
C25: 16 | E25: NB US 123 | F25: 2002 | H25: 2 | I25: mainline.
C26: 17 | E26: NB US 123 | F26: 2003 | H26: 1 | I26: on | J26: on from STH 1 | Y26: 2017-02-02 | AA26: 907 | AK26: Tube | AL26: =AA26 -> 907
C27: 18 | E27: NB US 123 | F27: 2004 | H27: 2 | I27: mainline. | Y27: 2017-02-02 | AA27: 2622 | AK27: Tube | AL27: =AA27 -> 2622
C28: 19 | E28: NB US 123 | F28: 1007 | G28: Secondary | H28: 1 | I28: off | J28: off to EB STH 99 | K28: =IF(NOT(K17=""),K17,"") ->  | L28: =IF(NOT(L17=""),L17,"") ->  | M28: =IF(NOT(M17=""),M17,"") ->  | N28: =IF(NOT(N17=""),N17,"") ->  | O28: =IF(NOT(O17=""),O17,"") ->  | P28: =IF(NOT(P17=""),P17,"") ->  | Q28: =IF(NOT(Q17=""),Q17,"") ->  | R28: =IF(NOT(R17=""),R17,"") ->  | S28: =IF(NOT(S17=""),S17,"") ->  | T28: =IF(NOT(T17=""),T17,"") ->  | U28: =IF(NOT(U17=""),U17,"") ->  | V28: =IF(NOT(V17=""),V17,"") ->  | W28: =IF(NOT(W17=""),W17,"") ->  | X28: =IF(NOT(X17=""),X17,"") ->  | Y28: =IF(NOT(Y17=""),Y17,"") -> 2019-04-04 | Z28: =IF(NOT(Z17=""),Z17,"") -> 16:00:00 | AA28: =IF(NOT(AA17=""),AA17,"") -> 1263 | AB28: =IF(NOT(AB17=""),AB17,"") ->  | AC28: =IF(NOT(AC17=""),AC17,"") ->  | AD28: =IF(NOT(AD17=""),AD17,"") ->  | AE28: =IF(NOT(AE17=""),AE17,"") ->  | AF28: =IF(NOT(AF17=""),AF17,"") ->  | AG28: =IF(NOT(AG17=""),AG17,"") ->  | AH28: =IF(NOT(AH17=""),AH17,"") ->  | AI28: =IF(NOT(AI17=""),AI17,"") ->  | AJ28: =IF(NOT(AJ17=""),AJ17,"") ->  | AK28: =IF(NOT(AK17=""),AK17,"") -> Tube | AL28: 1263
C29: 20 | E29: NB US 123 | F29: 2005 | H29: 2 | I29: mainline.
C30: 21 | E30: NB US 123 | F30: 2006 | H30: 1 | I30: off | J30: off to STH 2 | Y30: 2018-03-03 | AA30: 900 | AK30: Tube | AL30: =AA30 -> 900
C31: 22 | E31: NB US 123 | F31: 2007 | H31: 2 | I31: mainline.
C32: 23 | E32: NB US 123 | F32: 2008 | H32: 1 | I32: on | J32: on from STH 2 | Y32: 2018-03-03 | AA32: 761 | AK32: Tube | AL32: =AA32 -> 761
C33: 24 | E33: NB US 123 | F33: 2009 | H33: 2 | I33: mainline | J33: NB US 123, north of STH 2 | Y33: 2018-02-02 | AA33: 1578 | AK33: Tube | AL33: =AA33 -> 1578

Sheet Balancing
B1: *** Do not sort this worksheet*** | I1: Green highlighted cells demonstrate user inputs. See the notes on each highlighted cell for more info
B2: Filtering is ok, but sorting may cause errors in the Solver volumes, cumulative sums, and potentially the FINAL volumes. | I2: The automated balancing has not been run yet. Try runnig it, restting it, playing with the Weight Adjustments, Fixed Anchor, etc.
B3: Use the Diagnostics sheet for sorting data.
B4: Location Information | I4: Balancing
B5: Project | C5: =project_name -> Example 1 | I5: User Inputs - Volumes | M5: Raw vs Balanced Comparison | P5: User Inputs - Solver | S5: Solver Objective & Penalty Functions
B6: Scenario | C6: =scenario_name -> Existing 2019 PM Peak | M6: Also shown on "Diagnostics" worksheet | S6: =total_wRNSE*W8+sd_wRNSE*X8+total_wLargeRNSE*Y8+total_fixedPenalty -> 1609.581307 | T6: Solver Objective | X6: Large RNSE Penalty Threshold | Y6: 3 | AC6: Check for Blank Cells (show warning)
J7: Selected Raw/Initial Count used to start balancing | L7: Volume Type | U7: Network Weight | V7: Normalization Factors | W7: 0 | X7: 0 | Y7: 0 | AC7: TRUE
V8: theta: | W8: =1/MAX(normFactor_wRNSE, 0.1) -> 10 | X8: =1/MAX(normFactor_SD, 0.1) -> 10 | Y8: =1/MAX(normFactor_wLargeRNSE, 0.1) -> 10 | AC8: First Solver Run?
L9: Hourly | M9: Totals | N9: =SUM($N11:$N34) -> 12.03691446 | U9: =SUM($U11:$U34) -> 6.416 | W9: =SUM($W11:$W34) -> 116.0906915 | X9: =_xlfn.STDEV.P($W11:$W34) -> 13.41127651 | Y9: =SUM($Y11:$Y34) -> 31.45616266 | Z9: =SUM($Z11:$Z34) -> 0 | AC9: TRUE
B10: Corridor | C10: Corridor & Direction | D10: Link ID | E10: Affects 2+ Corridors? | F10: # of Lanes | G10: Location Type | H10: Location | I10: Ramp Sign | J10: Source / Comments | K10: Raw/Initial Volume | L10: FINAL Balanced Volumes | M10: Diff | N10: RNSE | O10: Comments | P10: Include as a Solver Variable? | Q10: Fixed Anchor | R10: Weight Adjustment | S10: Global Weight Rank | T10: Capacity Weight | U10: Weight Product (Cap. * Adj.) | V10: Global Weight | W10: Weighted RNSE Penalty | X10: Weighted SD Penalty | Y10: Weighted Large RNSE Penalty | Z10: Fixed Anchor Penalty | AC10: DO NOT USE OR DELETE THIS COLUMN
B11: EB STH 99 | C11: EB STH 99 | D11: 1000 | F11: 2 | G11: mainline | H11: EB STH 99, west of CTH X | J11: =IF($K11>0,INDEX('Raw-Initial Volumes'!$AK$10:$AK$33,MATCH($D11,'Raw-Initial Volumes'!$F$10:$F$33,0)),"") -> ATR | K11: =INDEX('Raw-Initial Volumes'!$AL$10:$AL$33,MATCH($D11,'Raw-Initial Volumes'!$F$10:$F$33,0)) -> 2053 | L11: =K11 -> 2053 | M11: =IF(K11>0,L11-K11,0) -> 0 | N11: =IF(K11>0,SQRT(M11^2/K11),0) -> 0 | P11: TRUE | R11: 1 | S11: =IF(NOT($Q11="Fixed"),1+SUMPRODUCT(NOT($Q$11:$Q$34="Fixed")*($V$11:$V$34>$V11)),"") -> 5 | T11: =Capacity_Weight(K11/F11,capweight_scale) -> 0.51325 | U11: =T11*R11*IF(E11="Secondary",0,1) -> 0.51325 | V11: =U11/network_weight*100 -> 7.999532419 | W11: =N11*V11 -> 0 | Y11: =V11*MAX(N11-$Y$6,0)^2 -> 0 | Z11: =IF(Q11="Fixed",999*(L11-K11)^2,0) -> 0
C12: EB STH 99 | D12: 1001 | F12: 1 | G12: on | H12: on from CTH X | I12: 1 | J12: =IF($K12>0,INDEX('Raw-Initial Volumes'!$AK$10:$AK$33,MATCH($D12,'Raw-Initial Volumes'!$F$10:$F$33,0)),"") -> Tube | K12: =INDEX('Raw-Initial Volumes'!$AL$10:$AL$33,MATCH($D12,'Raw-Initial Volumes'!$F$10:$F$33,0)) -> 348 | L12: =K12 -> 348 | M12: 0 | N12: 0 | P12: TRUE | R12: 1 | S12: 14 | T12: =Capacity_Weight(K12/F12,capweight_scale) -> 0.174 | U12: 0.174 | V12: =U12/network_weight*100 -> 2.711970075 | W12: 0 | Y12: 0 | Z12: 0
C13: EB STH 99 | D13: 1002 | F13: 2 | G13: mainline. | J13: =IF($K13>0,INDEX('Raw-Initial Volumes'!$AK$10:$AK$33,MATCH($D13,'Raw-Initial Volumes'!$F$10:$F$33,0)),"") ->  | K13: =INDEX('Raw-Initial Volumes'!$AL$10:$AL$33,MATCH($D13,'Raw-Initial Volumes'!$F$10:$F$33,0)) -> 0 | L13: =L11+L12 -> 2401 | M13: 0 | N13: 0 | R13: 1 | S13: 16 | T13: =Capacity_Weight(K13/F13,capweight_scale) -> 0 | U13: 0 | V13: =U13/network_weight*100 -> 0 | W13: 0 | Y13: 0 | Z13: 0
C14: EB STH 99 | D14: 1003 | F14: 1 | G14: off | H14: off to CTH A | I14: -1 | J14: =IF($K14>0,INDEX('Raw-Initial Volumes'!$AK$10:$AK$33,MATCH($D14,'Raw-Initial Volumes'!$F$10:$F$33,0)),"") -> V-SPOC | K14: =INDEX('Raw-Initial Volumes'!$AL$10:$AL$33,MATCH($D14,'Raw-Initial Volumes'!$F$10:$F$33,0)) -> 547 | L14: =K14 -> 547 | M14: 0 | N14: 0 | P14: TRUE | R14: 1 | S14: 11 | T14: =Capacity_Weight(K14/F14,capweight_scale) -> 0.2735 | U14: 0.2735 | V14: =U14/network_weight*100 -> 4.262780549 | W14: 0 | Y14: 0 | Z14: 0
C15: EB STH 99 | D15: 1004 | F15: 2 | G15: mainline. | J15: =IF($K15>0,INDEX('Raw-Initial Volumes'!$AK$10:$AK$33,MATCH($D15,'Raw-Initial Volumes'!$F$10:$F$33,0)),"") ->  | K15: =INDEX('Raw-Initial Volumes'!$AL$10:$AL$33,MATCH($D15,'Raw-Initial Volumes'!$F$10:$F$33,0)) -> 0 | L15: =L13-L14 -> 1854 | M15: 0 | N15: 0 | R15: 1 | S15: 16 | T15: =Capacity_Weight(K15/F15,capweight_scale) -> 0 | U15: 0 | V15: =U15/network_weight*100 -> 0 | W15: 0 | Y15: 0 | Z15: 0
C16: EB STH 99 | D16: 1005 | F16: 1 | G16: on | H16: on from CTH A | I16: 1 | J16: =IF($K16>0,INDEX('Raw-Initial Volumes'!$AK$10:$AK$33,MATCH($D16,'Raw-Initial Volumes'!$F$10:$F$33,0)),"") -> Tube | K16: =INDEX('Raw-Initial Volumes'!$AL$10:$AL$33,MATCH($D16,'Raw-Initial Volumes'!$F$10:$F$33,0)) -> 528 | L16: =K16 -> 528 | M16: 0 | N16: 0 | P16: TRUE | R16: 1 | S16: 12 | T16: =Capacity_Weight(K16/F16,capweight_scale) -> 0.264 | U16: 0.264 | V16: =U16/network_weight*100 -> 4.114713217 | W16: 0 | Y16: 0 | Z16: 0
C17: EB STH 99 | D17: 1006 | F17: 2 | G17: mainline. | J17: =IF($K17>0,INDEX('Raw-Initial Volumes'!$AK$10:$AK$33,MATCH($D17,'Raw-Initial Volumes'!$F$10:$F$33,0)),"") ->  | K17: =INDEX('Raw-Initial Volumes'!$AL$10:$AL$33,MATCH($D17,'Raw-Initial Volumes'!$F$10:$F$33,0)) -> 0 | L17: =$L$11+SUMPRODUCT($I$12:I16,$L$12:L16) -> 2382 | M17: 0 | N17: 0 | R17: 1 | S17: 16 | T17: =Capacity_Weight(K17/F17,capweight_scale) -> 0 | U17: 0 | V17: =U17/network_weight*100 -> 0 | W17: 0 | Y17: 0 | Z17: 0
C18: EB STH 99 | D18: 1007 | E18: Primary | F18: 1 | G18: on | H18: on from NB US 123 | I18: 1 | J18: =IF($K18>0,INDEX('Raw-Initial Volumes'!$AK$10:$AK$33,MATCH($D18,'Raw-Initial Volumes'!$F$10:$F$33,0)),"") -> Tube | K18: =INDEX('Raw-Initial Volumes'!$AL$10:$AL$33,MATCH($D18,'Raw-Initial Volumes'!$F$10:$F$33,0)) -> 1263 | L18: =K18 -> 1263 | M18: 0 | N18: 0 | P18: TRUE | R18: 1 | S18: 4 | T18: =Capacity_Weight(K18/F18,capweight_scale) -> 0.6315 | U18: 0.6315 | V18: =U18/network_weight*100 -> 9.842581047 | W18: 0 | Y18: 0 | Z18: 0
C19: EB STH 99 | D19: 1008 | F19: 2 | G19: mainline. | J19: =IF($K19>0,INDEX('Raw-Initial Volumes'!$AK$10:$AK$33,MATCH($D19,'Raw-Initial Volumes'!$F$10:$F$33,0)),"") ->  | K19: =INDEX('Raw-Initial Volumes'!$AL$10:$AL$33,MATCH($D19,'Raw-Initial Volumes'!$F$10:$F$33,0)) -> 0 | L19: =$L$11+SUMPRODUCT($I$12:I18,$L$12:L18) -> 3645 | M19: 0 | N19: 0 | R19: 1 | S19: 16 | T19: =Capacity_Weight(K19/F19,capweight_scale) -> 0 | U19: 0 | V19: =U19/network_weight*100 -> 0 | W19: 0 | Y19: 0 | Z19: 0
C20: EB STH 99 | D20: 1009 | F20: 1 | G20: off | H20: off to CTH B | I20: -1 | J20: =IF($K20>0,INDEX('Raw-Initial Volumes'!$AK$10:$AK$33,MATCH($D20,'Raw-Initial Volumes'!$F$10:$F$33,0)),"") -> Tube | K20: =INDEX('Raw-Initial Volumes'!$AL$10:$AL$33,MATCH($D20,'Raw-Initial Volumes'!$F$10:$F$33,0)) -> 500 | L20: =K20 -> 500 | M20: 0 | N20: 0 | P20: TRUE | R20: 1 | S20: 13 | T20: =Capacity_Weight(K20/F20,capweight_scale) -> 0.25 | U20: 0.25 | V20: =U20/network_weight*100 -> 3.896508728 | W20: 0 | Y20: 0 | Z20: 0
C21: EB STH 99 | D21: 1010 | F21: 2 | G21: mainline. | J21: =IF($K21>0,INDEX('Raw-Initial Volumes'!$AK$10:$AK$33,MATCH($D21,'Raw-Initial Volumes'!$F$10:$F$33,0)),"") ->  | K21: =INDEX('Raw-Initial Volumes'!$AL$10:$AL$33,MATCH($D21,'Raw-Initial Volumes'!$F$10:$F$33,0)) -> 0 | L21: =$L$11+SUMPRODUCT($I$12:I20,$L$12:L20) -> 3145 | M21: 0 | N21: 0 | R21: 1 | S21: 16 | T21: =Capacity_Weight(K21/F21,capweight_scale) -> 0 | U21: 0 | V21: =U21/network_weight*100 -> 0 | W21: 0 | Y21: 0 | Z21: 0
C22: EB STH 99 | D22: 1011 | F22: 1 | G22: on | H22: on from CTH B | I22: 1 | J22: =IF($K22>0,INDEX('Raw-Initial Volumes'!$AK$10:$AK$33,MATCH($D22,'Raw-Initial Volumes'!$F$10:$F$33,0)),"") -> Tube | K22: =INDEX('Raw-Initial Volumes'!$AL$10:$AL$33,MATCH($D22,'Raw-Initial Volumes'!$F$10:$F$33,0)) -> 265 | L22: =K22 -> 265 | M22: 0 | N22: 0 | P22: TRUE | R22: 1 | S22: 15 | T22: =Capacity_Weight(K22/F22,capweight_scale) -> 0.1325 | U22: 0.1325 | V22: =U22/network_weight*100 -> 2.065149626 | W22: 0 | Y22: 0 | Z22: 0
C23: EB STH 99 | D23: 1012 | F23: 2 | G23: mainline | H23: EB STH 99, east of CTH B | J23: =IF($K23>0,INDEX('Raw-Initial Volumes'!$AK$10:$AK$33,MATCH($D23,'Raw-Initial Volumes'!$F$10:$F$33,0)),"") -> Tube | K23: =INDEX('Raw-Initial Volumes'!$AL$10:$AL$33,MATCH($D23,'Raw-Initial Volumes'!$F$10:$F$33,0)) -> 3175 | L23: =$L$11+SUMPRODUCT($I$12:I22,$L$12:L22) -> 3410 | M23: 235 | N23: 4.170575594 | R23: 1 | S23: 1 | T23: =Capacity_Weight(K23/F23,capweight_scale) -> 0.79375 | U23: 0.79375 | V23: =U23/network_weight*100 -> 12.37141521 | W23: 51.59592235 | Y23: 16.95189732 | Z23: 0
B24: NB US 123 | C24: NB US 123 | D24: 2000 | F24: 2 | G24: mainline | H24: NB US 123, south of STH 1 | J24: =IF($K24>0,INDEX('Raw-Initial Volumes'!$AK$10:$AK$33,MATCH($D24,'Raw-Initial Volumes'!$F$10:$F$33,0)),"") -> Tube | K24: =INDEX('Raw-Initial Volumes'!$AL$10:$AL$33,MATCH($D24,'Raw-Initial Volumes'!$F$10:$F$33,0)) -> 2678 | L24: =K24 -> 2678 | M24: 0 | N24: 0 | P24: TRUE | R24: 1 | S24: 2 | T24: =Capacity_Weight(K24/F24,capweight_scale) -> 0.6695 | U24: 0.6695 | V24: =U24/network_weight*100 -> 10.43485037 | W24: 0 | Y24: 0 | Z24: 0
C25: NB US 123 | D25: 2001 | F25: 1 | G25: off | H25: off to STH 1 | I25: -1 | J25: =IF($K25>0,INDEX('Raw-Initial Volumes'!$AK$10:$AK$33,MATCH($D25,'Raw-Initial Volumes'!$F$10:$F$33,0)),"") -> Tube | K25: =INDEX('Raw-Initial Volumes'!$AL$10:$AL$33,MATCH($D25,'Raw-Initial Volumes'!$F$10:$F$33,0)) -> 760 | L25: =K25 -> 760 | M25: 0 | N25: 0 | P25: TRUE | R25: 1 | S25: 10 | T25: =Capacity_Weight(K25/F25,capweight_scale) -> 0.38 | U25: 0.38 | V25: =U25/network_weight*100 -> 5.922693267 | W25: 0 | Y25: 0 | Z25: 0
C26: NB US 123 | D26: 2002 | F26: 2 | G26: mainline. | J26: =IF($K26>0,INDEX('Raw-Initial Volumes'!$AK$10:$AK$33,MATCH($D26,'Raw-Initial Volumes'!$F$10:$F$33,0)),"") ->  | K26: =INDEX('Raw-Initial Volumes'!$AL$10:$AL$33,MATCH($D26,'Raw-Initial Volumes'!$F$10:$F$33,0)) -> 0 | L26: =$L$24+SUMPRODUCT($I$25:I25,$L$25:L25) -> 1918 | M26: 0 | N26: 0 | R26: 1 | S26: 16 | T26: =Capacity_Weight(K26/F26,capweight_scale) -> 0 | U26: 0 | V26: =U26/network_weight*100 -> 0 | W26: 0 | Y26: 0 | Z26: 0
C27: NB US 123 | D27: 2003 | F27: 1 | G27: on | H27: on from STH 1 | I27: 1 | J27: =IF($K27>0,INDEX('Raw-Initial Volumes'!$AK$10:$AK$33,MATCH($D27,'Raw-Initial Volumes'!$F$10:$F$33,0)),"") -> Tube | K27: =INDEX('Raw-Initial Volumes'!$AL$10:$AL$33,MATCH($D27,'Raw-Initial Volumes'!$F$10:$F$33,0)) -> 907 | L27: =K27 -> 907 | M27: 0 | N27: 0 | P27: TRUE | R27: 1 | S27: 6 | T27: =Capacity_Weight(K27/F27,capweight_scale) -> 0.4535 | U27: 0.4535 | V27: =U27/network_weight*100 -> 7.068266833 | W27: 0 | Y27: 0 | Z27: 0
C28: NB US 123 | D28: 2004 | F28: 2 | G28: mainline. | J28: =IF($K28>0,INDEX('Raw-Initial Volumes'!$AK$10:$AK$33,MATCH($D28,'Raw-Initial Volumes'!$F$10:$F$33,0)),"") -> Tube | K28: =INDEX('Raw-Initial Volumes'!$AL$10:$AL$33,MATCH($D28,'Raw-Initial Volumes'!$F$10:$F$33,0)) -> 2622 | L28: =$L$24+SUMPRODUCT($I$25:I27,$L$25:L27) -> 2825 | M28: 203 | N28: 3.964420327 | R28: 1 | S28: 3 | T28: =Capacity_Weight(K28/F28,capweight_scale) -> 0.6555 | U28: 0.6555 | V28: =U28/network_weight*100 -> 10.21664589 | W28: 40.50307862 | Y28: 9.502569429 | Z28: 0
C29: NB US 123 | D29: 1007 | E29: Secondary | F29: 1 | G29: off | H29: off to EB STH 99 | I29: -1 | J29: =IF($K29>0,INDEX('Raw-Initial Volumes'!$AK$10:$AK$33,MATCH($D29,'Raw-Initial Volumes'!$F$10:$F$33,0)),"") -> Tube | K29: =INDEX('Raw-Initial Volumes'!$AL$10:$AL$33,MATCH($D29,'Raw-Initial Volumes'!$F$10:$F$33,0)) -> 1263 | L29: =L18 -> 1263 | M29: 0 | N29: 0 | R29: 1 | S29: 16 | T29: =Capacity_Weight(K29/F29,capweight_scale) -> 0.6315 | U29: 0 | V29: =U29/network_weight*100 -> 0 | W29: 0 | Y29: 0 | Z29: 0
C30: NB US 123 | D30: 2005 | F30: 2 | G30: mainline. | J30: =IF($K30>0,INDEX('Raw-Initial Volumes'!$AK$10:$AK$33,MATCH($D30,'Raw-Initial Volumes'!$F$10:$F$33,0)),"") ->  | K30: =INDEX('Raw-Initial Volumes'!$AL$10:$AL$33,MATCH($D30,'Raw-Initial Volumes'!$F$10:$F$33,0)) -> 0 | L30: =$L$24+SUMPRODUCT($I$25:I29,$L$25:L29) -> 1562 | M30: 0 | N30: 0 | R30: 1 | S30: 16 | T30: =Capacity_Weight(K30/F30,capweight_scale) -> 0 | U30: 0 | V30: =U30/network_weight*100 -> 0 | W30: 0 | Y30: 0 | Z30: 0
C31: NB US 123 | D31: 2006 | F31: 1 | G31: off | H31: off to STH 2 | I31: -1 | J31: =IF($K31>0,INDEX('Raw-Initial Volumes'!$AK$10:$AK$33,MATCH($D31,'Raw-Initial Volumes'!$F$10:$F$33,0)),"") -> Tube | K31: =INDEX('Raw-Initial Volumes'!$AL$10:$AL$33,MATCH($D31,'Raw-Initial Volumes'!$F$10:$F$33,0)) -> 900 | L31: =K31 -> 900 | M31: 0 | N31: 0 | P31: TRUE | R31: 1 | S31: 7 | T31: =Capacity_Weight(K31/F31,capweight_scale) -> 0.45 | U31: 0.45 | V31: =U31/network_weight*100 -> 7.013715711 | W31: 0 | Y31: 0 | Z31: 0
C32: NB US 123 | D32: 2007 | F32: 2 | G32: mainline. | J32: =IF($K32>0,INDEX('Raw-Initial Volumes'!$AK$10:$AK$33,MATCH($D32,'Raw-Initial Volumes'!$F$10:$F$33,0)),"") ->  | K32: =INDEX('Raw-Initial Volumes'!$AL$10:$AL$33,MATCH($D32,'Raw-Initial Volumes'!$F$10:$F$33,0)) -> 0 | L32: =$L$24+SUMPRODUCT($I$25:I31,$L$25:L31) -> 662 | M32: 0 | N32: 0 | R32: 1 | S32: 16 | T32: =Capacity_Weight(K32/F32,capweight_scale) -> 0 | U32: 0 | V32: =U32/network_weight*100 -> 0 | W32: 0 | Y32: 0 | Z32: 0
C33: NB US 123 | D33: 2008 | F33: 1 | G33: on | H33: on from STH 2 | I33: 1 | J33: =IF($K33>0,INDEX('Raw-Initial Volumes'!$AK$10:$AK$33,MATCH($D33,'Raw-Initial Volumes'!$F$10:$F$33,0)),"") -> Tube | K33: =INDEX('Raw-Initial Volumes'!$AL$10:$AL$33,MATCH($D33,'Raw-Initial Volumes'!$F$10:$F$33,0)) -> 761 | L33: =K33 -> 761 | M33: 0 | N33: 0 | P33: TRUE | R33: 1 | S33: 9 | T33: =Capacity_Weight(K33/F33,capweight_scale) -> 0.3805 | U33: 0.3805 | V33: =U33/network_weight*100 -> 5.930486284 | W33: 0 | Y33: 0 | Z33: 0
C34: NB US 123 | D34: 2009 | F34: 2 | G34: mainline | H34: NB US 123, north of STH 2 | J34: =IF($K34>0,INDEX('Raw-Initial Volumes'!$AK$10:$AK$33,MATCH($D34,'Raw-Initial Volumes'!$F$10:$F$33,0)),"") -> Tube | K34: =INDEX('Raw-Initial Volumes'!$AL$10:$AL$33,MATCH($D34,'Raw-Initial Volumes'!$F$10:$F$33,0)) -> 1578 | L34: =$L$24+SUMPRODUCT($I$25:I33,$L$25:L33) -> 1423 | M34: -155 | N34: 3.901918543 | R34: 1 | S34: 8 | T34: =Capacity_Weight(K34/F34,capweight_scale) -> 0.3945 | U34: 0.3945 | V34: =U34/network_weight*100 -> 6.148690773 | W34: 23.99169054 | Y34: 5.001695905 | Z34: 0

Sheet Diagnostics
D2: Project | E2: =project_name -> Example 1
D3: Scenario | E3: =scenario_name -> Existing 2019 PM Peak
D5: Location Information | K5: Raw vs Balanced Comparison | Q5: Solver Diagnostics
C7: SORT | D7: Corridor | E7: Corridor & Direction | F7: Link ID | G7: Affects 2+ Corridors? | H7: # of Lanes | I7: Type | J7: Location | K7: Raw Source / Comments | L7: Raw | M7: Balanced FINAL | N7: Diff | O7: RNSE | P7: Comments | Q7: Solver Inputs | R7: Input Global Weight | S7: Input Global Weight Rank | T7: Solver Outputs | U7: Final vs Solver Outputs | V7: First Run Formula
C8: 1 | D8: EB STH 99 | E8: EB STH 99 | F8: 1000 | H8: 2 | I8: mainline | J8: EB STH 99, west of CTH X | K8: =INDEX(Balancing!$J$11:$J$34,MATCH($F8,Balancing!$D$11:$D$34,0)) -> ATR | L8: =INDEX(Balancing!$K$11:$K$34,MATCH($F8,Balancing!$D$11:$D$34,0)) -> 2053 | M8: =INDEX(Balancing!$L$11:$L$34,MATCH($F8,Balancing!$D$11:$D$34,0)) -> 2053 | N8: =IF($L8>0,$M8-$L8,"") -> 0 | O8: =IF($L8>0,SQRT($N8^2/$L8),"") -> 0 | P8: =INDEX(Balancing!$O$11:$O$34,MATCH($F8,Balancing!$D$11:$D$34,0)) -> 0 | R8: =INDEX(Balancing!$V$11:$V$34,MATCH($F8,Balancing!$D$11:$D$34,0)) -> 7.999532419 | S8: =INDEX(Balancing!$S$11:$S$34,MATCH($F8,Balancing!$D$11:$D$34,0)) -> 5 | U8: =M8-T8 -> 2053
C9: 2 | E9: EB STH 99 | F9: 1001 | H9: 1 | I9: on | J9: on from CTH X | K9: =INDEX(Balancing!$J$11:$J$34,MATCH($F9,Balancing!$D$11:$D$34,0)) -> Tube | L9: =INDEX(Balancing!$K$11:$K$34,MATCH($F9,Balancing!$D$11:$D$34,0)) -> 348 | M9: =INDEX(Balancing!$L$11:$L$34,MATCH($F9,Balancing!$D$11:$D$34,0)) -> 348 | N9: 0 | O9: 0 | P9: =INDEX(Balancing!$O$11:$O$34,MATCH($F9,Balancing!$D$11:$D$34,0)) -> 0 | R9: =INDEX(Balancing!$V$11:$V$34,MATCH($F9,Balancing!$D$11:$D$34,0)) -> 2.711970075 | S9: =INDEX(Balancing!$S$11:$S$34,MATCH($F9,Balancing!$D$11:$D$34,0)) -> 14 | U9: 348
C10: 3 | E10: EB STH 99 | F10: 1002 | H10: 2 | I10: mainline. | K10: =INDEX(Balancing!$J$11:$J$34,MATCH($F10,Balancing!$D$11:$D$34,0)) ->  | L10: =INDEX(Balancing!$K$11:$K$34,MATCH($F10,Balancing!$D$11:$D$34,0)) -> 0 | M10: =INDEX(Balancing!$L$11:$L$34,MATCH($F10,Balancing!$D$11:$D$34,0)) -> 2401 | P10: =INDEX(Balancing!$O$11:$O$34,MATCH($F10,Balancing!$D$11:$D$34,0)) -> 0 | R10: =INDEX(Balancing!$V$11:$V$34,MATCH($F10,Balancing!$D$11:$D$34,0)) -> 0 | S10: =INDEX(Balancing!$S$11:$S$34,MATCH($F10,Balancing!$D$11:$D$34,0)) -> 16 | U10: 2401
C11: 4 | E11: EB STH 99 | F11: 1003 | H11: 1 | I11: off | J11: off to CTH A | K11: =INDEX(Balancing!$J$11:$J$34,MATCH($F11,Balancing!$D$11:$D$34,0)) -> V-SPOC | L11: =INDEX(Balancing!$K$11:$K$34,MATCH($F11,Balancing!$D$11:$D$34,0)) -> 547 | M11: =INDEX(Balancing!$L$11:$L$34,MATCH($F11,Balancing!$D$11:$D$34,0)) -> 547 | N11: 0 | O11: 0 | P11: =INDEX(Balancing!$O$11:$O$34,MATCH($F11,Balancing!$D$11:$D$34,0)) -> 0 | R11: =INDEX(Balancing!$V$11:$V$34,MATCH($F11,Balancing!$D$11:$D$34,0)) -> 4.262780549 | S11: =INDEX(Balancing!$S$11:$S$34,MATCH($F11,Balancing!$D$11:$D$34,0)) -> 11 | U11: 547
C12: 5 | E12: EB STH 99 | F12: 1004 | H12: 2 | I12: mainline. | K12: =INDEX(Balancing!$J$11:$J$34,MATCH($F12,Balancing!$D$11:$D$34,0)) ->  | L12: =INDEX(Balancing!$K$11:$K$34,MATCH($F12,Balancing!$D$11:$D$34,0)) -> 0 | M12: =INDEX(Balancing!$L$11:$L$34,MATCH($F12,Balancing!$D$11:$D$34,0)) -> 1854 | P12: =INDEX(Balancing!$O$11:$O$34,MATCH($F12,Balancing!$D$11:$D$34,0)) -> 0 | R12: =INDEX(Balancing!$V$11:$V$34,MATCH($F12,Balancing!$D$11:$D$34,0)) -> 0 | S12: =INDEX(Balancing!$S$11:$S$34,MATCH($F12,Balancing!$D$11:$D$34,0)) -> 16 | U12: 1854
C13: 6 | E13: EB STH 99 | F13: 1005 | H13: 1 | I13: on | J13: on from CTH A | K13: =INDEX(Balancing!$J$11:$J$34,MATCH($F13,Balancing!$D$11:$D$34,0)) -> Tube | L13: =INDEX(Balancing!$K$11:$K$34,MATCH($F13,Balancing!$D$11:$D$34,0)) -> 528 | M13: =INDEX(Balancing!$L$11:$L$34,MATCH($F13,Balancing!$D$11:$D$34,0)) -> 528 | N13: 0 | O13: 0 | P13: =INDEX(Balancing!$O$11:$O$34,MATCH($F13,Balancing!$D$11:$D$34,0)) -> 0 | R13: =INDEX(Balancing!$V$11:$V$34,MATCH($F13,Balancing!$D$11:$D$34,0)) -> 4.114713217 | S13: =INDEX(Balancing!$S$11:$S$34,MATCH($F13,Balancing!$D$11:$D$34,0)) -> 12 | U13: 528
C14: 7 | E14: EB STH 99 | F14: 1006 | H14: 2 | I14: mainline. | K14: =INDEX(Balancing!$J$11:$J$34,MATCH($F14,Balancing!$D$11:$D$34,0)) ->  | L14: =INDEX(Balancing!$K$11:$K$34,MATCH($F14,Balancing!$D$11:$D$34,0)) -> 0 | M14: =INDEX(Balancing!$L$11:$L$34,MATCH($F14,Balancing!$D$11:$D$34,0)) -> 2382 | P14: =INDEX(Balancing!$O$11:$O$34,MATCH($F14,Balancing!$D$11:$D$34,0)) -> 0 | R14: =INDEX(Balancing!$V$11:$V$34,MATCH($F14,Balancing!$D$11:$D$34,0)) -> 0 | S14: =INDEX(Balancing!$S$11:$S$34,MATCH($F14,Balancing!$D$11:$D$34,0)) -> 16 | U14: 2382
C15: 8 | E15: EB STH 99 | F15: 1007 | G15: Primary | H15: 1 | I15: on | J15: on from NB US 123 | K15: =INDEX(Balancing!$J$11:$J$34,MATCH($F15,Balancing!$D$11:$D$34,0)) -> Tube | L15: =INDEX(Balancing!$K$11:$K$34,MATCH($F15,Balancing!$D$11:$D$34,0)) -> 1263 | M15: =INDEX(Balancing!$L$11:$L$34,MATCH($F15,Balancing!$D$11:$D$34,0)) -> 1263 | N15: 0 | O15: 0 | P15: =INDEX(Balancing!$O$11:$O$34,MATCH($F15,Balancing!$D$11:$D$34,0)) -> 0 | R15: =INDEX(Balancing!$V$11:$V$34,MATCH($F15,Balancing!$D$11:$D$34,0)) -> 9.842581047 | S15: =INDEX(Balancing!$S$11:$S$34,MATCH($F15,Balancing!$D$11:$D$34,0)) -> 4 | U15: 1263
C16: 9 | E16: EB STH 99 | F16: 1008 | H16: 2 | I16: mainline. | K16: =INDEX(Balancing!$J$11:$J$34,MATCH($F16,Balancing!$D$11:$D$34,0)) ->  | L16: =INDEX(Balancing!$K$11:$K$34,MATCH($F16,Balancing!$D$11:$D$34,0)) -> 0 | M16: =INDEX(Balancing!$L$11:$L$34,MATCH($F16,Balancing!$D$11:$D$34,0)) -> 3645 | P16: =INDEX(Balancing!$O$11:$O$34,MATCH($F16,Balancing!$D$11:$D$34,0)) -> 0 | R16: =INDEX(Balancing!$V$11:$V$34,MATCH($F16,Balancing!$D$11:$D$34,0)) -> 0 | S16: =INDEX(Balancing!$S$11:$S$34,MATCH($F16,Balancing!$D$11:$D$34,0)) -> 16 | U16: 3645
C17: 10 | E17: EB STH 99 | F17: 1009 | H17: 1 | I17: off | J17: off to CTH B | K17: =INDEX(Balancing!$J$11:$J$34,MATCH($F17,Balancing!$D$11:$D$34,0)) -> Tube | L17: =INDEX(Balancing!$K$11:$K$34,MATCH($F17,Balancing!$D$11:$D$34,0)) -> 500 | M17: =INDEX(Balancing!$L$11:$L$34,MATCH($F17,Balancing!$D$11:$D$34,0)) -> 500 | N17: 0 | O17: 0 | P17: =INDEX(Balancing!$O$11:$O$34,MATCH($F17,Balancing!$D$11:$D$34,0)) -> 0 | R17: =INDEX(Balancing!$V$11:$V$34,MATCH($F17,Balancing!$D$11:$D$34,0)) -> 3.896508728 | S17: =INDEX(Balancing!$S$11:$S$34,MATCH($F17,Balancing!$D$11:$D$34,0)) -> 13 | U17: 500
C18: 11 | E18: EB STH 99 | F18: 1010 | H18: 2 | I18: mainline. | K18: =INDEX(Balancing!$J$11:$J$34,MATCH($F18,Balancing!$D$11:$D$34,0)) ->  | L18: =INDEX(Balancing!$K$11:$K$34,MATCH($F18,Balancing!$D$11:$D$34,0)) -> 0 | M18: =INDEX(Balancing!$L$11:$L$34,MATCH($F18,Balancing!$D$11:$D$34,0)) -> 3145 | P18: =INDEX(Balancing!$O$11:$O$34,MATCH($F18,Balancing!$D$11:$D$34,0)) -> 0 | R18: =INDEX(Balancing!$V$11:$V$34,MATCH($F18,Balancing!$D$11:$D$34,0)) -> 0 | S18: =INDEX(Balancing!$S$11:$S$34,MATCH($F18,Balancing!$D$11:$D$34,0)) -> 16 | U18: 3145
C19: 12 | E19: EB STH 99 | F19: 1011 | H19: 1 | I19: on | J19: on from CTH B | K19: =INDEX(Balancing!$J$11:$J$34,MATCH($F19,Balancing!$D$11:$D$34,0)) -> Tube | L19: =INDEX(Balancing!$K$11:$K$34,MATCH($F19,Balancing!$D$11:$D$34,0)) -> 265 | M19: =INDEX(Balancing!$L$11:$L$34,MATCH($F19,Balancing!$D$11:$D$34,0)) -> 265 | N19: 0 | O19: 0 | P19: =INDEX(Balancing!$O$11:$O$34,MATCH($F19,Balancing!$D$11:$D$34,0)) -> 0 | R19: =INDEX(Balancing!$V$11:$V$34,MATCH($F19,Balancing!$D$11:$D$34,0)) -> 2.065149626 | S19: =INDEX(Balancing!$S$11:$S$34,MATCH($F19,Balancing!$D$11:$D$34,0)) -> 15 | U19: 265
C20: 13 | E20: EB STH 99 | F20: 1012 | H20: 2 | I20: mainline | J20: EB STH 99, east of CTH B | K20: =INDEX(Balancing!$J$11:$J$34,MATCH($F20,Balancing!$D$11:$D$34,0)) -> Tube | L20: =INDEX(Balancing!$K$11:$K$34,MATCH($F20,Balancing!$D$11:$D$34,0)) -> 3175 | M20: =INDEX(Balancing!$L$11:$L$34,MATCH($F20,Balancing!$D$11:$D$34,0)) -> 3410 | N20: 235 | O20: 4.170575594 | P20: =INDEX(Balancing!$O$11:$O$34,MATCH($F20,Balancing!$D$11:$D$34,0)) -> 0 | R20: =INDEX(Balancing!$V$11:$V$34,MATCH($F20,Balancing!$D$11:$D$34,0)) -> 12.37141521 | S20: =INDEX(Balancing!$S$11:$S$34,MATCH($F20,Balancing!$D$11:$D$34,0)) -> 1 | U20: 3410
C21: 14 | D21: NB US 123 | E21: NB US 123 | F21: 2000 | H21: 2 | I21: mainline | J21: NB US 123, south of STH 1 | K21: =INDEX(Balancing!$J$11:$J$34,MATCH($F21,Balancing!$D$11:$D$34,0)) -> Tube | L21: =INDEX(Balancing!$K$11:$K$34,MATCH($F21,Balancing!$D$11:$D$34,0)) -> 2678 | M21: =INDEX(Balancing!$L$11:$L$34,MATCH($F21,Balancing!$D$11:$D$34,0)) -> 2678 | N21: 0 | O21: 0 | P21: =INDEX(Balancing!$O$11:$O$34,MATCH($F21,Balancing!$D$11:$D$34,0)) -> 0 | R21: =INDEX(Balancing!$V$11:$V$34,MATCH($F21,Balancing!$D$11:$D$34,0)) -> 10.43485037 | S21: =INDEX(Balancing!$S$11:$S$34,MATCH($F21,Balancing!$D$11:$D$34,0)) -> 2 | U21: 2678
C22: 15 | E22: NB US 123 | F22: 2001 | H22: 1 | I22: off | J22: off to STH 1 | K22: =INDEX(Balancing!$J$11:$J$34,MATCH($F22,Balancing!$D$11:$D$34,0)) -> Tube | L22: =INDEX(Balancing!$K$11:$K$34,MATCH($F22,Balancing!$D$11:$D$34,0)) -> 760 | M22: =INDEX(Balancing!$L$11:$L$34,MATCH($F22,Balancing!$D$11:$D$34,0)) -> 760 | N22: 0 | O22: 0 | P22: =INDEX(Balancing!$O$11:$O$34,MATCH($F22,Balancing!$D$11:$D$34,0)) -> 0 | R22: =INDEX(Balancing!$V$11:$V$34,MATCH($F22,Balancing!$D$11:$D$34,0)) -> 5.922693267 | S22: =INDEX(Balancing!$S$11:$S$34,MATCH($F22,Balancing!$D$11:$D$34,0)) -> 10 | U22: 760
C23: 16 | E23: NB US 123 | F23: 2002 | H23: 2 | I23: mainline. | K23: =INDEX(Balancing!$J$11:$J$34,MATCH($F23,Balancing!$D$11:$D$34,0)) ->  | L23: =INDEX(Balancing!$K$11:$K$34,MATCH($F23,Balancing!$D$11:$D$34,0)) -> 0 | M23: =INDEX(Balancing!$L$11:$L$34,MATCH($F23,Balancing!$D$11:$D$34,0)) -> 1918 | P23: =INDEX(Balancing!$O$11:$O$34,MATCH($F23,Balancing!$D$11:$D$34,0)) -> 0 | R23: =INDEX(Balancing!$V$11:$V$34,MATCH($F23,Balancing!$D$11:$D$34,0)) -> 0 | S23: =INDEX(Balancing!$S$11:$S$34,MATCH($F23,Balancing!$D$11:$D$34,0)) -> 16 | U23: 1918
C24: 17 | E24: NB US 123 | F24: 2003 | H24: 1 | I24: on | J24: on from STH 1 | K24: =INDEX(Balancing!$J$11:$J$34,MATCH($F24,Balancing!$D$11:$D$34,0)) -> Tube | L24: =INDEX(Balancing!$K$11:$K$34,MATCH($F24,Balancing!$D$11:$D$34,0)) -> 907 | M24: =INDEX(Balancing!$L$11:$L$34,MATCH($F24,Balancing!$D$11:$D$34,0)) -> 907 | N24: 0 | O24: 0 | P24: =INDEX(Balancing!$O$11:$O$34,MATCH($F24,Balancing!$D$11:$D$34,0)) -> 0 | R24: =INDEX(Balancing!$V$11:$V$34,MATCH($F24,Balancing!$D$11:$D$34,0)) -> 7.068266833 | S24: =INDEX(Balancing!$S$11:$S$34,MATCH($F24,Balancing!$D$11:$D$34,0)) -> 6 | U24: 907
C25: 18 | E25: NB US 123 | F25: 2004 | H25: 2 | I25: mainline. | K25: =INDEX(Balancing!$J$11:$J$34,MATCH($F25,Balancing!$D$11:$D$34,0)) -> Tube | L25: =INDEX(Balancing!$K$11:$K$34,MATCH($F25,Balancing!$D$11:$D$34,0)) -> 2622 | M25: =INDEX(Balancing!$L$11:$L$34,MATCH($F25,Balancing!$D$11:$D$34,0)) -> 2825 | N25: 203 | O25: 3.964420327 | P25: =INDEX(Balancing!$O$11:$O$34,MATCH($F25,Balancing!$D$11:$D$34,0)) -> 0 | R25: =INDEX(Balancing!$V$11:$V$34,MATCH($F25,Balancing!$D$11:$D$34,0)) -> 10.21664589 | S25: =INDEX(Balancing!$S$11:$S$34,MATCH($F25,Balancing!$D$11:$D$34,0)) -> 3 | U25: 2825
C26: 19 | E26: NB US 123 | F26: 1007 | G26: Secondary | H26: 1 | I26: off | J26: off to EB STH 99 | K26: =INDEX(Balancing!$J$11:$J$34,MATCH($F26,Balancing!$D$11:$D$34,0)) -> Tube | L26: =INDEX(Balancing!$K$11:$K$34,MATCH($F26,Balancing!$D$11:$D$34,0)) -> 1263 | M26: =INDEX(Balancing!$L$11:$L$34,MATCH($F26,Balancing!$D$11:$D$34,0)) -> 1263 | N26: 0 | O26: 0 | P26: =INDEX(Balancing!$O$11:$O$34,MATCH($F26,Balancing!$D$11:$D$34,0)) -> 0 | R26: =INDEX(Balancing!$V$11:$V$34,MATCH($F26,Balancing!$D$11:$D$34,0)) -> 9.842581047 | S26: =INDEX(Balancing!$S$11:$S$34,MATCH($F26,Balancing!$D$11:$D$34,0)) -> 4 | U26: 1263
C27: 20 | E27: NB US 123 | F27: 2005 | H27: 2 | I27: mainline. | K27: =INDEX(Balancing!$J$11:$J$34,MATCH($F27,Balancing!$D$11:$D$34,0)) ->  | L27: =INDEX(Balancing!$K$11:$K$34,MATCH($F27,Balancing!$D$11:$D$34,0)) -> 0 | M27: =INDEX(Balancing!$L$11:$L$34,MATCH($F27,Balancing!$D$11:$D$34,0)) -> 1562 | P27: =INDEX(Balancing!$O$11:$O$34,MATCH($F27,Balancing!$D$11:$D$34,0)) -> 0 | R27: =INDEX(Balancing!$V$11:$V$34,MATCH($F27,Balancing!$D$11:$D$34,0)) -> 0 | S27: =INDEX(Balancing!$S$11:$S$34,MATCH($F27,Balancing!$D$11:$D$34,0)) -> 16 | U27: 1562
C28: 21 | E28: NB US 123 | F28: 2006 | H28: 1 | I28: off | J28: off to STH 2 | K28: =INDEX(Balancing!$J$11:$J$34,MATCH($F28,Balancing!$D$11:$D$34,0)) -> Tube | L28: =INDEX(Balancing!$K$11:$K$34,MATCH($F28,Balancing!$D$11:$D$34,0)) -> 900 | M28: =INDEX(Balancing!$L$11:$L$34,MATCH($F28,Balancing!$D$11:$D$34,0)) -> 900 | N28: 0 | O28: 0 | P28: =INDEX(Balancing!$O$11:$O$34,MATCH($F28,Balancing!$D$11:$D$34,0)) -> 0 | R28: =INDEX(Balancing!$V$11:$V$34,MATCH($F28,Balancing!$D$11:$D$34,0)) -> 7.013715711 | S28: =INDEX(Balancing!$S$11:$S$34,MATCH($F28,Balancing!$D$11:$D$34,0)) -> 7 | U28: 900
C29: 22 | E29: NB US 123 | F29: 2007 | H29: 2 | I29: mainline. | K29: =INDEX(Balancing!$J$11:$J$34,MATCH($F29,Balancing!$D$11:$D$34,0)) ->  | L29: =INDEX(Balancing!$K$11:$K$34,MATCH($F29,Balancing!$D$11:$D$34,0)) -> 0 | M29: =INDEX(Balancing!$L$11:$L$34,MATCH($F29,Balancing!$D$11:$D$34,0)) -> 662 | P29: =INDEX(Balancing!$O$11:$O$34,MATCH($F29,Balancing!$D$11:$D$34,0)) -> 0 | R29: =INDEX(Balancing!$V$11:$V$34,MATCH($F29,Balancing!$D$11:$D$34,0)) -> 0 | S29: =INDEX(Balancing!$S$11:$S$34,MATCH($F29,Balancing!$D$11:$D$34,0)) -> 16 | U29: 662
C30: 23 | E30: NB US 123 | F30: 2008 | H30: 1 | I30: on | J30: on from STH 2 | K30: =INDEX(Balancing!$J$11:$J$34,MATCH($F30,Balancing!$D$11:$D$34,0)) -> Tube | L30: =INDEX(Balancing!$K$11:$K$34,MATCH($F30,Balancing!$D$11:$D$34,0)) -> 761 | M30: =INDEX(Balancing!$L$11:$L$34,MATCH($F30,Balancing!$D$11:$D$34,0)) -> 761 | N30: 0 | O30: 0 | P30: =INDEX(Balancing!$O$11:$O$34,MATCH($F30,Balancing!$D$11:$D$34,0)) -> 0 | R30: =INDEX(Balancing!$V$11:$V$34,MATCH($F30,Balancing!$D$11:$D$34,0)) -> 5.930486284 | S30: =INDEX(Balancing!$S$11:$S$34,MATCH($F30,Balancing!$D$11:$D$34,0)) -> 9 | U30: 761
C31: 24 | E31: NB US 123 | F31: 2009 | H31: 2 | I31: mainline | J31: NB US 123, north of STH 2 | K31: =INDEX(Balancing!$J$11:$J$34,MATCH($F31,Balancing!$D$11:$D$34,0)) -> Tube | L31: =INDEX(Balancing!$K$11:$K$34,MATCH($F31,Balancing!$D$11:$D$34,0)) -> 1578 | M31: =INDEX(Balancing!$L$11:$L$34,MATCH($F31,Balancing!$D$11:$D$34,0)) -> 1423 | N31: -155 | O31: 3.901918543 | P31: =INDEX(Balancing!$O$11:$O$34,MATCH($F31,Balancing!$D$11:$D$34,0)) -> 0 | R31: =INDEX(Balancing!$V$11:$V$34,MATCH($F31,Balancing!$D$11:$D$34,0)) -> 6.148690773 | S31: =INDEX(Balancing!$S$11:$S$34,MATCH($F31,Balancing!$D$11:$D$34,0)) -> 8 | U31: 1423

Sheet Export To Intersection Balancer
E2: Project | F2: =project_name -> Example 1
E3: Scenario | F3: =scenario_name -> Existing 2019 PM Peak
D5: Copy this Data to the Turning Movement Balancing Workbook
C6: LINK_ID (no prefix) | D6: LINK_ID | E6: Corridor | F6: Corridor & Direction | G6: Type | H6: Location | I6: Balanced Volume
C7: 1000 | D7: ="LINK_" & $C7 -> LINK_1000 | E7: EB STH 99 | F7: EB STH 99 | G7: mainline | H7: EB STH 99, west of CTH X | I7: =INDEX(Balancing!$L$11:$L$34,MATCH($C7,Balancing!$D$11:$D$34,0)) -> 2053
C8: 1001 | D8: LINK_1001 | F8: EB STH 99 | G8: on | H8: on from CTH X | I8: =INDEX(Balancing!$L$11:$L$34,MATCH($C8,Balancing!$D$11:$D$34,0)) -> 348
C9: 1002 | D9: LINK_1002 | F9: EB STH 99 | G9: mainline. | I9: =INDEX(Balancing!$L$11:$L$34,MATCH($C9,Balancing!$D$11:$D$34,0)) -> 2401
C10: 1003 | D10: LINK_1003 | F10: EB STH 99 | G10: off | H10: off to CTH A | I10: =INDEX(Balancing!$L$11:$L$34,MATCH($C10,Balancing!$D$11:$D$34,0)) -> 547
C11: 1004 | D11: LINK_1004 | F11: EB STH 99 | G11: mainline. | I11: =INDEX(Balancing!$L$11:$L$34,MATCH($C11,Balancing!$D$11:$D$34,0)) -> 1854
C12: 1005 | D12: LINK_1005 | F12: EB STH 99 | G12: on | H12: on from CTH A | I12: =INDEX(Balancing!$L$11:$L$34,MATCH($C12,Balancing!$D$11:$D$34,0)) -> 528
C13: 1006 | D13: LINK_1006 | F13: EB STH 99 | G13: mainline. | I13: =INDEX(Balancing!$L$11:$L$34,MATCH($C13,Balancing!$D$11:$D$34,0)) -> 2382
C14: 1007 | D14: LINK_1007 | F14: EB STH 99 | G14: on | H14: on from NB US 123 | I14: =INDEX(Balancing!$L$11:$L$34,MATCH($C14,Balancing!$D$11:$D$34,0)) -> 1263
C15: 1008 | D15: LINK_1008 | F15: EB STH 99 | G15: mainline. | I15: =INDEX(Balancing!$L$11:$L$34,MATCH($C15,Balancing!$D$11:$D$34,0)) -> 3645
C16: 1009 | D16: LINK_1009 | F16: EB STH 99 | G16: off | H16: off to CTH B | I16: =INDEX(Balancing!$L$11:$L$34,MATCH($C16,Balancing!$D$11:$D$34,0)) -> 500
C17: 1010 | D17: LINK_1010 | F17: EB STH 99 | G17: mainline. | I17: =INDEX(Balancing!$L$11:$L$34,MATCH($C17,Balancing!$D$11:$D$34,0)) -> 3145
C18: 1011 | D18: LINK_1011 | F18: EB STH 99 | G18: on | H18: on from CTH B | I18: =INDEX(Balancing!$L$11:$L$34,MATCH($C18,Balancing!$D$11:$D$34,0)) -> 265
C19: 1012 | D19: LINK_1012 | F19: EB STH 99 | G19: mainline | H19: EB STH 99, east of CTH B | I19: =INDEX(Balancing!$L$11:$L$34,MATCH($C19,Balancing!$D$11:$D$34,0)) -> 3410
C20: 2000 | D20: LINK_2000 | E20: NB US 123 | F20: NB US 123 | G20: mainline | H20: NB US 123, south of STH 1 | I20: =INDEX(Balancing!$L$11:$L$34,MATCH($C20,Balancing!$D$11:$D$34,0)) -> 2678
C21: 2001 | D21: LINK_2001 | F21: NB US 123 | G21: off | H21: off to STH 1 | I21: =INDEX(Balancing!$L$11:$L$34,MATCH($C21,Balancing!$D$11:$D$34,0)) -> 760
C22: 2002 | D22: LINK_2002 | F22: NB US 123 | G22: mainline. | I22: =INDEX(Balancing!$L$11:$L$34,MATCH($C22,Balancing!$D$11:$D$34,0)) -> 1918
C23: 2003 | D23: LINK_2003 | F23: NB US 123 | G23: on | H23: on from STH 1 | I23: =INDEX(Balancing!$L$11:$L$34,MATCH($C23,Balancing!$D$11:$D$34,0)) -> 907
C24: 2004 | D24: LINK_2004 | F24: NB US 123 | G24: mainline. | I24: =INDEX(Balancing!$L$11:$L$34,MATCH($C24,Balancing!$D$11:$D$34,0)) -> 2825
C25: 1007 | D25: LINK_1007 | F25: NB US 123 | G25: off | H25: off to EB STH 99 | I25: =INDEX(Balancing!$L$11:$L$34,MATCH($C25,Balancing!$D$11:$D$34,0)) -> 1263
C26: 2005 | D26: LINK_2005 | F26: NB US 123 | G26: mainline. | I26: =INDEX(Balancing!$L$11:$L$34,MATCH($C26,Balancing!$D$11:$D$34,0)) -> 1562
C27: 2006 | D27: LINK_2006 | F27: NB US 123 | G27: off | H27: off to STH 2 | I27: =INDEX(Balancing!$L$11:$L$34,MATCH($C27,Balancing!$D$11:$D$34,0)) -> 900
C28: 2007 | D28: LINK_2007 | F28: NB US 123 | G28: mainline. | I28: =INDEX(Balancing!$L$11:$L$34,MATCH($C28,Balancing!$D$11:$D$34,0)) -> 662
C29: 2008 | D29: LINK_2008 | F29: NB US 123 | G29: on | H29: on from STH 2 | I29: =INDEX(Balancing!$L$11:$L$34,MATCH($C29,Balancing!$D$11:$D$34,0)) -> 761
C30: 2009 | D30: LINK_2009 | F30: NB US 123 | G30: mainline | H30: NB US 123, north of STH 2 | I30: =INDEX(Balancing!$L$11:$L$34,MATCH($C30,Balancing!$D$11:$D$34,0)) -> 1423

Sheet Data Validation (hidden)
D2: Allowed values in Columns using "Data Validation" Drop-down Cells
D4: Corridor Worksheet | H4: Balancing Worksheet
D5: Affects 2+ Corridors? | E5: Type | H5: Capacity Weight
D6: Primary | E6: on | H6: Hourly
D7: Secondary | E7: off | H7: AADT
E8: CD
E9: mainline
E10: mainline.
